fUST/lending_fUST_20250116
["ID","MTS","AMOUNT","RATE_DAILY","PERIOD"]
[349199494,1737029424754,-500.0,0.00019178,2]
[349199495,1737029424778,-500.0,0.00019178,2]
[349199496,1737029424802,-500.0,0.00019178,2]
[349199497,1737029424826,-438.92287716,0.00019178,2]
[349199498,1737029424850,-500.0,0.00019178,2]
[349199499,1737029424872,-500.0,0.00019178,2]
[349199500,1737029424896,-500.0,0.00019178,2]
[349199501,1737029424920,-191.56789017,0.00019178,2]
[349199502,1737029424948,-500.0,0.00019178,2]
[349199503,1737029424971,-500.0,0.00019178,2]
[349199504,1737029425003,-500.0,0.00019178,2]
[349199505,1737029425027,-500.0,0.00019178,2]
[349199506,1737029425050,-500.0,0.00019178,2]
[349199507,1737029425074,-616.34,0.00019178,2]
[349199508,1737029425099,-616.34,0.00019178,2]
[349199509,1737029425120,-500.0,0.00019178,2]
[349199510,1737029425144,-500.0,0.00019178,2]
[349199511,1737029425168,-591.08,0.00019178,2]
[349199512,1737029425191,-500.0,0.00019178,2]
[349199513,1737029425216,-1513.2,0.00019178,2]
[349199514,1737029425241,-500.0,0.00019178,2]
[349199515,1737029425264,-500.0,0.00019178,2]
[349199516,1737029425288,-500.0,0.00019178,2]
[349199517,1737029425311,-562.4162423,0.00019178,2]
[349199518,1737029425334,-249.02,0.00019178,2]
[349199519,1737029425356,-500.0,0.00019178,2]
[349199520,1737029425378,-500.0,0.00019178,2]
[349199521,1737029425401,-500.0,0.00019178,2]
[349199522,1737029425424,-914.37,0.00019178,2]
[349199523,1737029425447,-340.21435294,0.00019178,2]
[349199524,1737029425474,-500.0,0.00019178,2]
[349199525,1737029425502,-1017.19,0.00019178,2]
[349199526,1737029425525,-500.0,0.00019178,2]
[349199527,1737029425548,-510.90066208,0.00019178,2]
[349199528,1737029425572,-500.0,0.00019178,2]
[349199529,1737029425597,-500.0,0.00019178,2]
[349199530,1737029425621,-508.29,0.00019178,2]
[349199531,1737029425647,-500.0,0.00019178,2]
[349199532,1737029425670,-4100.64,0.00019178,2]
[349199533,1737029425693,-500.0,0.00019178,2]
[349199534,1737029425718,-500.0,0.00019178,2]
[349199535,1737029425742,-500.0,0.00019178,2]
[349199536,1737029425765,-500.0,0.00019178,2]
[349199537,1737029425788,-444.17691208,0.00019178,2]
[349199538,1737029425810,-500.0,0.00019178,2]
[349199539,1737029425835,-500.0,0.00019178,2]
[349199540,1737029425860,-500.0,0.00019178,2]
[349199541,1737029425883,-500.0,0.00019178,2]
[349199542,1737029425905,-500.0,0.00019178,2]
[349199543,1737029425929,-500.0,0.00019178,2]
[349199544,1737029425957,-500.0,0.00019178,2]
[349199545,1737029425980,-500.0,0.00019178,2]
[349199546,1737029426005,-500.0,0.00019178,2]
[349199547,1737029426029,-500.0,0.00019178,2]
[349199548,1737029426055,-504.92,0.00019178,2]
[349199549,1737029426080,-500.0,0.00019178,2]
[349199550,1737029426103,-500.0,0.00019178,2]
[349199551,1737029426126,-500.0,0.00019178,2]
[349199552,1737029426150,-500.0,0.00019178,2]
[349199553,1737029426174,-500.0,0.00019178,2]
[349199554,1737029426199,-500.0,0.00019178,2]
[349199555,1737029426224,-500.0,0.00019178,2]
[349199556,1737029426252,-1635.84,0.00019178,2]
[349199557,1737029426277,-500.0,0.00019178,2]
[349199558,1737029426300,-500.0,0.00019178,2]
[349199559,1737029426325,-500.0,0.00019178,2]
[349199560,1737029426349,-500.0,0.00019178,2]
[349199561,1737029426374,-632.01,0.00019178,2]
[349199562,1737029426399,-500.0,0.00019178,2]
[349199563,1737029426424,-500.0,0.00019178,2]
[349199564,1737029426448,-167.976312,0.00019178,2]
[349199565,1737029426474,-616.34,0.00019314,3]
[349199566,1737029426502,-616.34,0.00019314,3]
[349199567,1737029426525,-500.34981484,0.00019315,3]
[349199568,1737029426549,-500.0,0.00019315,3]
[349199569,1737029426574,-500.0,0.00019315,3]
[349199570,1737029426599,-500.0,0.00019315,3]
[349199571,1737029426625,-500.0,0.00019315,3]
[349199572,1737029426653,-446.96840259,0.00019315,3]
[349199573,1737029426679,-500.0,0.00019315,3]
[349199574,1737029426703,-211.66,0.00019315,3]
[349199575,1737029426729,-500.0,0.00019315,2]
[349199576,1737029426754,-500.0,0.00019315,3]
[349199577,1737029426780,-500.0,0.00019315,3]
[349199578,1737029426805,-500.0,0.00019315,3]
[349199579,1737029426830,-500.0,0.00019315,3]
[349199580,1737029426855,-500.0,0.00019315,3]
[349199581,1737029426880,-591.08,0.00019315,3]
[349199582,1737029426904,-515.90948713,0.00019315,3]
[349199583,1737029426930,-1513.2,0.00019315,3]
[349199584,1737029426957,-500.0,0.00019315,3]
[349199585,1737029426980,-191.95837781,0.00019315,3]
[349199586,1737029427006,-500.0,0.00019315,3]
[349199587,1737029427035,-500.0,0.00019315,3]
[349199588,1737029427062,-500.0,0.00019315,3]
[349199589,1737029427088,-914.37,0.00019315,3]
[349199590,1737029427114,-500.0,0.00019315,3]
[349199591,1737029427139,-1017.19,0.00019315,3]
[349199592,1737029427165,-500.0,0.00019315,3]
[349199593,1737029427190,-500.0,0.00019315,3]
[349199594,1737029427215,-508.29,0.00019315,3]
[349199595,1737029427241,-500.0,0.00019315,3]
[349199596,1737029427267,-4100.64,0.00019315,3]
[349199597,1737029427292,-500.0,0.00019315,3]
[349199598,1737029427316,-500.0,0.00019315,3]
[349199599,1737029427340,-500.0,0.00019315,3]
[349199600,1737029427364,-643.34541767,0.00019315,3]
[349199601,1737029427390,-500.0,0.00019315,3]
[349199602,1737029427416,-500.0,0.00019315,3]
[349199603,1737029427441,-500.0,0.00019315,3]
[349199604,1737029427467,-500.0,0.00019315,3]
[349199605,1737029427491,-500.0,0.00019315,3]
[349199606,1737029427517,-500.0,0.00019315,3]
[349199607,1737029427541,-500.0,0.00019315,3]
[349199608,1737029427567,-504.92,0.00019315,3]
[349199609,1737029427592,-500.0,0.00019315,3]
[349199610,1737029427616,-500.0,0.00019315,3]
[349199611,1737029427657,-500.0,0.00019315,3]
[349199612,1737029427684,-1635.84,0.00019315,3]
[349199613,1737029427707,-500.0,0.00019315,3]
[349199614,1737029427732,-500.0,0.00019315,3]
[349199615,1737029427759,-632.01,0.00019315,3]
[349199616,1737029427788,-577.73552929,0.00019315,3]
[349199617,1737029427812,-500.0,0.00019315,3]
[349199618,1737029427835,-483.0,0.000194,8]
[349199619,1737029427860,-420.0,0.00019446,2]
[349199620,1737029427885,-295.09259101,0.00019451,2]
[349199621,1737029428014,-500.0,0.00019451,2]
[349199622,1737029428040,-500.0,0.00019451,2]
[349199623,1737029428065,-500.0,0.00019451,2]
[349199624,1737029428089,-500.0,0.00019451,2]
[349199625,1737029428113,-500.0,0.00019451,2]
[349199626,1737029428138,-500.0,0.00019451,2]
[349199627,1737029428162,-500.0,0.00019451,2]
[349199628,1737029428186,-500.0,0.00019451,2]
[349199629,1737029428209,-500.0,0.00019451,2]
[349199630,1737029428234,-600.0,0.00019451,2]
[349199631,1737029428261,-616.34,0.00019451,3]
[349199632,1737029428284,-500.0,0.00019452,3]
[349199633,1737029428307,-500.0,0.00019452,3]
[349199634,1737029428335,-500.0,0.00019452,3]
[349199635,1737029428359,-310.41,0.00019452,3]
[349199636,1737029428383,-179.91,0.00019452,3]
[349199637,1737029428407,-500.0,0.00019452,2]
[349199638,1737029428431,-500.0,0.00019452,3]
[349199639,1737029428456,-500.0,0.00019452,3]
[349199640,1737029428480,-500.0,0.00019452,3]
[349199641,1737029428509,-591.08,0.00019452,3]
[349199642,1737029428537,-1513.2,0.00019452,3]
[349199643,1737029428561,-500.0,0.00019452,3]
[349199644,1737029428584,-500.0,0.00019452,3]
[349199645,1737029428607,-10.13996628,0.00019452,3]
[349199669,1737029432148,-504.1996892,0.00017487,2]
[349199670,1737029432160,-500.0,0.00019178,2]
[349199671,1737029432171,-500.0,0.00019315,3]
[349199672,1737029432181,-489.86003372,0.00019452,3]
[349199673,1737029432192,-500.0,0.00019452,3]
[349199674,1737029432202,-914.37,0.00019452,3]
[349199675,1737029432212,-500.0,0.00019452,3]
[349199676,1737029432222,-1017.19,0.00019452,3]
[349199677,1737029432233,-226.85778666,0.00019452,3]
[349199678,1737029432243,-500.0,0.00019452,3]
[349199679,1737029432255,-508.29,0.00019452,3]
[349199680,1737029432265,-500.0,0.00019452,3]
[349199681,1737029432275,-4100.64,0.00019452,3]
[349199682,1737029432285,-500.0,0.00019452,3]
[349199683,1737029432295,-500.0,0.00019452,3]
[349199684,1737029432305,-500.0,0.00019452,3]
[349199685,1737029432315,-500.0,0.00019452,3]
[349199689,1737029432325,-500.0,0.00019452,3]
[349199691,1737029432335,-500.0,0.00019452,3]
[349199692,1737029432345,-500.0,0.00019452,3]
[349199694,1737029432355,-500.0,0.00019452,3]
[349199695,1737029432364,-504.92,0.00019452,3]
[349199696,1737029432374,-500.0,0.00019452,3]
[349199697,1737029432383,-500.0,0.00019452,3]
[349199698,1737029432393,-500.0,0.00019452,3]
[349199699,1737029432403,-1635.84,0.00019452,3]
[349199700,1737029432413,-500.0,0.00019452,3]
[349199701,1737029432424,-500.0,0.00019452,3]
[349199702,1737029432433,-632.01,0.00019452,3]
[349199703,1737029432443,-500.0,0.00019452,3]
[349199704,1737029432454,-500.0,0.00019452,3]
[349199705,1737029432464,-370.299,0.00019476,2]
[349199706,1737029432474,-158.924,0.00019476,2]
[349199707,1737029432484,-616.34,0.00019586,3]
[349199708,1737029432494,-616.34,0.00019588,3]
[349199709,1737029432507,-500.0,0.00019589,3]
[349199710,1737029432517,-500.0,0.00019589,2]
[349199711,1737029432527,-500.0,0.00019589,3]
[349199712,1737029432538,-500.0,0.00019589,3]
[349199713,1737029432548,-591.08,0.00019589,3]
[349199714,1737029432558,-1513.2,0.00019589,3]
[349199715,1737029432568,-630.73,0.00019589,3]
[349199716,1737029432578,-500.0,0.00019589,3]
[349199717,1737029432587,-500.0,0.00019589,3]
[349199718,1737029432597,-500.0,0.00019589,3]
[349199719,1737029432607,-914.37,0.00019589,3]
[349199720,1737029432617,-500.0,0.00019589,3]
[349199721,1737029432627,-1017.19,0.00019589,3]
[349199722,1737029432636,-500.0,0.00019589,3]
[349199723,1737029432646,-508.29,0.00019589,3]
[349199724,1737029432656,-500.0,0.00019589,3]
[349199725,1737029432666,-4100.64,0.00019589,3]
[349199726,1737029432676,-500.0,0.00019589,3]
[349199727,1737029432685,-500.0,0.00019589,3]
[349199728,1737029432695,-500.0,0.00019589,3]
[349199729,1737029432705,-500.0,0.00019589,3]
[349199730,1737029432716,-500.0,0.00019589,3]
[349199731,1737029432726,-500.0,0.00019589,3]
[349199732,1737029432735,-500.0,0.00019589,3]
[349199733,1737029432745,-500.0,0.00019589,3]
[349199734,1737029432757,-504.92,0.00019589,3]
[349199735,1737029432767,-500.0,0.00019589,3]
[349199736,1737029432776,-500.0,0.00019589,3]
[349199737,1737029432785,-1635.84,0.00019589,3]
[349199738,1737029432795,-500.0,0.00019589,3]
[349199739,1737029432805,-500.0,0.00019589,3]
[349199740,1737029432815,-632.01,0.00019589,3]
[349199741,1737029432824,-500.0,0.00019589,3]
[349199742,1737029432834,-500.0,0.00019589,3]
[349199743,1737029432844,-616.34,0.00019725,3]
[349199744,1737029432854,-500.0,0.00019726,3]
[349199745,1737029432863,-500.0,0.00019726,2]
[349199746,1737029432876,-500.0,0.00019726,3]
[349199747,1737029432885,-500.0,0.00019726,3]
[349199748,1737029432895,-591.08,0.00019726,3]
[349199749,1737029432905,-1513.2,0.00019726,3]
[349199750,1737029432915,-500.0,0.00019726,3]
[349199751,1737029432925,-500.0,0.00019726,3]
[349199752,1737029432935,-914.37,0.00019726,3]
[349199753,1737029432949,-500.0,0.00019726,3]
[349199754,1737029432958,-1017.19,0.00019726,3]
[349199755,1737029432968,-500.0,0.00019726,3]
[349199756,1737029432978,-508.29,0.00019726,3]
[349199757,1737029432987,-500.0,0.00019726,3]
[349199758,1737029432997,-4100.64,0.00019726,3]
[349199759,1737029433009,-500.0,0.00019726,3]
[349199760,1737029433019,-500.0,0.00019726,3]
[349199761,1737029433029,-500.0,0.00019726,3]
[349199762,1737029433038,-500.0,0.00019726,3]
[349199763,1737029433048,-500.0,0.00019726,3]
[349199764,1737029433058,-507.50702301,0.00019726,3]
[349199765,1737029433068,-500.0,0.00019726,3]
[349199766,1737029433077,-504.92,0.00019726,3]
[349199767,1737029433087,-500.0,0.00019726,3]
[349199768,1737029433097,-500.0,0.00019726,3]
[349199769,1737029433107,-1635.84,0.00019726,3]
[349199770,1737029433117,-500.0,0.00019726,3]
[349199771,1737029433126,-500.0,0.00019726,3]
[349199772,1737029433136,-632.01,0.00019726,3]
[349199773,1737029433146,-500.0,0.00019726,3]
[349199774,1737029433155,-500.0,0.00019726,3]
[349199775,1737029433165,-500.0,0.0001985,2]
[349199776,1737029433175,-616.34,0.00019862,3]
[349199777,1737029433186,-620.04276362,0.00019863,3]
[349199778,1737029433197,-500.0,0.00019863,2]
[349199779,1737029433206,-500.0,0.00019863,3]
[349199780,1737029433216,-500.0,0.00019863,3]
[349199781,1737029433227,-591.08,0.00019863,3]
[349199782,1737029433237,-1513.2,0.00019863,3]
[349199783,1737029433247,-500.0,0.00019863,3]
[349199784,1737029433260,-500.0,0.00019863,3]
[349199785,1737029433270,-914.37,0.00019863,3]
[349199786,1737029433281,-500.0,0.00019863,3]
[349199787,1737029433291,-1017.19,0.00019863,3]
[349199788,1737029433302,-500.0,0.00019863,3]
[349199789,1737029433313,-508.29,0.00019863,3]
[349199790,1737029433323,-500.0,0.00019863,3]
[349199791,1737029433333,-4100.64,0.00019863,3]
[349199792,1737029433343,-500.0,0.00019863,3]
[349199793,1737029433353,-500.0,0.00019863,3]
[349199794,1737029433363,-500.0,0.00019863,3]
[349199795,1737029433374,-438.14,0.00019863,3]
[349199796,1737029433383,-198.85134574,0.00019863,3]
[349199797,1737029433392,-500.0,0.00019863,3]
[349199798,1737029433402,-504.92,0.00019863,3]
[349199799,1737029433412,-500.0,0.00019863,3]
[349199800,1737029433423,-500.0,0.00019863,3]
[349199801,1737029433433,-1635.84,0.00019863,3]
[349199802,1737029433443,-500.0,0.00019863,3]
[349199803,1737029433452,-500.0,0.00019863,3]
[349199804,1737029433463,-632.01,0.00019863,3]
[349199805,1737029433475,-500.0,0.00019863,3]
[349199806,1737029433485,-500.0,0.00019863,3]
[349199807,1737029433496,-616.34,0.00019999,3]
[349199808,1737029433508,-616.34,0.00019999,3]
[349199809,1737029433518,-160.0,0.0002,2]
[349199810,1737029433528,-1000.0,0.0002,3]
[349199811,1737029433538,-1306.22,0.0002,2]
[349199812,1737029433548,-5730.0,0.0002,2]
[349199813,1737029433558,-500.0,0.0002,2]
[349199814,1737029433568,-500.0,0.0002,3]
[349199815,1737029433578,-500.0,0.0002,3]
[349199816,1737029433589,-591.08,0.0002,3]
[349199817,1737029433600,-1513.2,0.0002,3]
[349199818,1737029433609,-474.7627999,0.0002,3]
[349199819,1737029433620,-500.0,0.0002,3]
[349199820,1737029433629,-914.37,0.0002,3]
[349199821,1737029433639,-500.0,0.0002,3]
[349199822,1737029433649,-1017.19,0.0002,3]
[349199823,1737029433659,-500.0,0.0002,3]
[349199824,1737029433670,-508.29,0.0002,3]
[349199825,1737029433680,-500.0,0.0002,3]
[349199826,1737029433691,-4100.64,0.0002,3]
[349199827,1737029433703,-500.0,0.0002,3]
[349199828,1737029433715,-500.0,0.0002,3]
[349199829,1737029433726,-500.0,0.0002,3]
[349199830,1737029433736,-500.0,0.0002,3]
[349199831,1737029433747,-504.92,0.0002,3]
[349199832,1737029433759,-500.0,0.0002,3]
[349199833,1737029433770,-422727.23929875,0.0002,5]
[349199834,1737029433872,-18182.50332713,0.0002,5]
[349199848,1737029437966,-500.0,0.00019178,2]
[349199849,1737029437976,-500.0,0.00019315,3]
[349199850,1737029437987,-500.0,0.00019452,3]
[349199851,1737029437996,-500.0,0.00019589,3]
[349199852,1737029438008,-500.0,0.00019726,3]
[349199853,1737029438018,-500.0,0.00019863,3]
[349199854,1737029438028,-500.0,0.00019999,2]
[349199855,1737029438038,-184.83778824,0.00019999,2]
[349199856,1737029438048,-298.20929546,0.00019999,2]
[349199861,1737029438172,-400.0,0.00019999,2]
[349199862,1737029438182,-94864.55609035,0.0002,5]
[349199876,1737029440127,-395.0,0.00019893,2]
[349199877,1737029440138,-1198.62948229,0.000199,2]
[349199878,1737029440148,-3476.00708203,0.0002,5]
[349199879,1737029440181,-455.69200896,0.0002,5]
[349199880,1737029440193,-1546.78600054,0.0002,5]
[349199882,1737029440240,-4910.92031945,0.0002,5]
[349199957,1737029860083,3129.0,0.00025,120]
[349199958,1737030045478,180.448434,0.00013973,2]
[349199962,1737030310166,5000.0,0.0001506,2]
[349199964,1737030339672,5041.953,0.0001506,2]
[349199971,1737030443830,10000.0,0.0001506,2]
[349200115,1737030632663,-300.0,0.00017999,2]
[349200116,1737030632674,-989.31172241,0.00018,2]
[349200117,1737030632717,-16521.52094127,0.00018,2]
[349200118,1737030632727,-2073.60927572,0.00019,2]
[349200119,1737030632737,-178.95740512,0.00019078,2]
[349200120,1737030632747,-500.0,0.00019178,2]
[349200121,1737030632757,-236.31605315,0.00019178,2]
[349200122,1737030632767,-500.0,0.00019178,2]
[349200124,1737030632777,-500.0,0.00019178,2]
[349200125,1737030632787,-500.0,0.00019178,2]
[349200126,1737030632796,-500.0,0.00019178,2]
[349200127,1737030632806,-1268.55,0.00019178,2]
[349200128,1737030632815,-500.0,0.00019178,2]
[349200129,1737030632825,-500.0,0.00019178,2]
[349200130,1737030632837,-500.0,0.00019178,2]
[349200131,1737030632848,-500.0,0.00019178,2]
[349200132,1737030632866,-500.0,0.00019178,2]
[349200133,1737030632884,-500.0,0.00019178,2]
[349200134,1737030632893,-1362.34,0.00019178,2]
[349200135,1737030632903,-500.0,0.00019178,2]
[349200136,1737030632913,-500.0,0.00019178,2]
[349200137,1737030632922,-500.0,0.00019178,2]
[349200138,1737030632932,-500.0,0.00019178,2]
[349200139,1737030632942,-242.94199642,0.00019178,2]
[349200140,1737030632953,-500.0,0.00019178,2]
[349200141,1737030632962,-500.0,0.00019178,2]
[349200142,1737030632972,-500.0,0.00019178,2]
[349200143,1737030632982,-500.0,0.00019178,2]
[349200144,1737030632992,-500.0,0.00019178,2]
[349200145,1737030633001,-500.0,0.00019178,2]
[349200146,1737030633011,-500.0,0.00019178,2]
[349200147,1737030633020,-500.0,0.00019178,2]
[349200148,1737030633030,-1332.85,0.00019178,2]
[349200149,1737030633040,-500.0,0.00019178,2]
[349200150,1737030633050,-500.0,0.00019178,2]
[349200151,1737030633060,-500.0,0.00019178,2]
[349200152,1737030633070,-500.0,0.00019178,2]
[349200153,1737030633080,-500.0,0.00019178,2]
[349200154,1737030633089,-500.0,0.00019178,2]
[349200155,1737030633099,-6300.55,0.00019178,2]
[349200156,1737030633112,-500.0,0.00019178,2]
[349200157,1737030633122,-500.0,0.00019178,2]
[349200158,1737030633131,-500.0,0.00019178,2]
[349200159,1737030633141,-500.0,0.00019178,2]
[349200160,1737030633151,-500.0,0.00019178,2]
[349200161,1737030633162,-500.0,0.00019178,2]
[349200162,1737030633172,-500.0,0.00019178,2]
[349200163,1737030633182,-216.65048523,0.00019178,2]
[349200164,1737030633193,-500.0,0.00019178,2]
[349200165,1737030633203,-2025.41,0.00019178,2]
[349200166,1737030633213,-500.0,0.00019178,2]
[349200167,1737030633223,-619.23,0.00019178,2]
[349200168,1737030633233,-500.0,0.00019178,2]
[349200169,1737030633244,-643.54,0.00019178,2]
[349200170,1737030633254,-500.0,0.00019178,2]
[349200171,1737030633264,-514.07,0.00019178,2]
[349200172,1737030633275,-150.63058654,0.00019178,2]
[349200173,1737030633284,-500.0,0.00019178,2]
[349200174,1737030633295,-500.0,0.00019178,2]
[349200175,1737030633311,-500.0,0.00019178,2]
[349200176,1737030633320,-500.0,0.00019178,2]
[349200177,1737030633331,-500.0,0.00019178,2]
[349200178,1737030633342,-933.97,0.00019178,2]
[349200179,1737030633353,-500.0,0.00019178,2]
[349200180,1737030633540,-500.0,0.00019178,2]
[349200181,1737030633552,-500.0,0.00019178,2]
[349200182,1737030633562,-500.0,0.00019178,2]
[349200183,1737030633573,-1696.35,0.00019178,2]
[349200184,1737030633583,-169.59727,0.00019178,2]
[349200185,1737030633593,-500.0,0.00019314,3]
[349200186,1737030633606,-500.0,0.00019315,3]
[349200187,1737030633617,-500.0,0.00019315,2]
[349200188,1737030633627,-500.0,0.00019315,3]
[349200189,1737030633637,-500.0,0.00019315,3]
[349200190,1737030633649,-1268.55,0.00019315,3]
[349200191,1737030633659,-500.0,0.00019315,3]
[349200192,1737030633670,-500.0,0.00019315,3]
[349200193,1737030633680,-500.0,0.00019315,3]
[349200194,1737030633690,-500.0,0.00019315,3]
[349200195,1737030633700,-1362.34,0.00019315,3]
[349200196,1737030633710,-500.0,0.00019315,3]
[349200197,1737030633720,-639.2,0.00019315,3]
[349200198,1737030633730,-500.0,0.00019315,3]
[349200199,1737030633740,-305.8046154,0.00019315,3]
[349200200,1737030633750,-1332.85,0.00019315,3]
[349200201,1737030633762,-500.0,0.00019315,3]
[349200202,1737030633773,-500.0,0.00019315,3]
[349200203,1737030633783,-500.0,0.00019315,3]
[349200204,1737030633793,-500.0,0.00019315,3]
[349200205,1737030633804,-500.0,0.00019315,3]
[349200206,1737030633813,-6300.55,0.00019315,3]
[349200207,1737030633824,-500.0,0.00019315,3]
[349200208,1737030633835,-500.0,0.00019315,3]
[349200209,1737030633846,-500.0,0.00019315,3]
[349200210,1737030633859,-500.0,0.00019315,3]
[349200211,1737030633869,-500.0,0.00019315,3]
[349200212,1737030633879,-500.0,0.00019315,3]
[349200213,1737030633889,-2025.41,0.00019315,3]
[349200214,1737030633899,-500.0,0.00019315,3]
[349200215,1737030633910,-500.0,0.00019315,3]
[349200216,1737030633922,-619.23,0.00019315,3]
[349200217,1737030633932,-643.54,0.00019315,3]
[349200218,1737030633942,-500.0,0.00019315,3]
[349200219,1737030633953,-514.07,0.00019315,3]
[349200220,1737030633963,-500.0,0.00019315,3]
[349200221,1737030633973,-500.0,0.00019315,3]
[349200222,1737030633984,-500.0,0.00019315,3]
[349200223,1737030633994,-500.0,0.00019315,3]
[349200224,1737030634005,-933.97,0.00019315,3]
[349200225,1737030634018,-500.0,0.00019315,3]
[349200226,1737030634029,-188.8396536,0.00019315,3]
[349200227,1737030634044,-311.1603464,0.00019315,3]
[349200228,1737030634055,-439.03312337,0.00019315,3]
[349200229,1737030634072,-60.96687663,0.00019315,3]
[349200230,1737030634083,-552.73139141,0.00019315,3]
[349200231,1737030634092,-1696.35,0.00019315,3]
[349200232,1737030634103,-500.0,0.00019451,3]
[349200233,1737030634114,-423.11137398,0.00019451,2]
[349200234,1737030634125,-233.23218576,0.00019451,2]
[349200235,1737030634135,-586.6501526,0.00019451,2]
[349200236,1737030634146,-500.0,0.00019452,3]
[349200237,1737030634156,-500.0,0.00019452,2]
[349200238,1737030634166,-500.0,0.00019452,3]
[349200239,1737030634177,-500.0,0.00019452,3]
[349200240,1737030634187,-1268.55,0.00019452,3]
[349200241,1737030634197,-500.0,0.00019452,3]
[349200242,1737030634207,-500.0,0.00019452,3]
[349200243,1737030634218,-500.0,0.00019452,3]
[349200244,1737030634228,-1362.34,0.00019452,3]
[349200245,1737030634238,-500.0,0.00019452,3]
[349200246,1737030634248,-500.0,0.00019452,3]
[349200247,1737030634258,-1332.85,0.00019452,3]
[349200248,1737030634268,-500.0,0.00019452,3]
[349200249,1737030634278,-500.0,0.00019452,3]
[349200250,1737030634288,-500.0,0.00019452,3]
[349200251,1737030634299,-500.0,0.00019452,3]
[349200252,1737030634311,-6300.55,0.00019452,3]
[349200253,1737030634323,-500.0,0.00019452,3]
[349200254,1737030634334,-500.0,0.00019452,3]
[349200255,1737030634345,-500.0,0.00019452,3]
[349200256,1737030634356,-500.0,0.00019452,3]
[349200257,1737030634366,-2025.41,0.00019452,3]
[349200258,1737030634376,-500.0,0.00019452,3]
[349200259,1737030634386,-500.0,0.00019452,3]
[349200260,1737030634397,-619.23,0.00019452,3]
[349200261,1737030634407,-643.54,0.00019452,3]
[349200262,1737030634417,-500.0,0.00019452,3]
[349200263,1737030634427,-514.07,0.00019452,3]
[349200264,1737030634437,-500.0,0.00019452,3]
[349200265,1737030634446,-500.0,0.00019452,3]
[349200266,1737030634455,-500.0,0.00019452,3]
[349200267,1737030634464,-500.0,0.00019452,3]
[349200268,1737030634474,-933.97,0.00019452,3]
[349200269,1737030634484,-500.0,0.00019452,3]
[349200270,1737030634495,-1696.35,0.00019452,3]
[349200271,1737030634506,-368.278,0.00019473,2]
[349200272,1737030634516,-500.0,0.00019473,2]
[349200273,1737030634525,-158.92480121,0.00019473,2]
[349200274,1737030634536,-8079.187403,0.00019561,2]
[349200275,1737030634546,-500.0,0.00019588,3]
[349200276,1737030634557,-500.0,0.00019589,3]
[349200277,1737030634567,-500.0,0.00019589,2]
[349200278,1737030634577,-500.0,0.00019589,3]
[349200279,1737030634587,-500.0,0.00019589,3]
[349200280,1737030634597,-1268.55,0.00019589,3]